bitfinex-derivatives/quotes_SOLF0:USTF0_20240816
["timestamp","ask_amount","ask_price","bid_price","bid_amount"]
[1723815521213,3.5228,141.9,141.88,0.04696636]
[1723815521418,0.05410888,141.91,141.88,0.04696636]
[1723815521916,3.5229,141.89,141.88,0.04696636]
[1723815523717,3.5227,141.9,141.88,0.04696636]
[1723815523913,0.05410888,141.91,141.88,0.04696636]
[1723815525011,1.2776,141.99,141.95,3.5213]
[1723815525218,1.2776,141.99,141.93,50.77]
[1723815525519,7.86,142.01,141.96,3.5211]
[1723815525710,7.86,142.01,141.96,50.77]
[1723815525910,28.18,142.05,141.96,50.77]
[1723815526118,7.86,142.06,141.96,50.77]
[1723815526321,0.04522832,142.0,141.97,0.04850822]
[1723815526620,7.86,142.06,141.96,50.77]
[1723815526850,0.04532914,142.0,141.98,50.77]
[1723815527115,3.519,142.05,142.01,3.5198]
[1723815527616,3.8857,142.07,141.98,50.77]
[1723815527823,54.6557,142.07,141.96,50.77]
[1723815528116,54.6557,142.07,142.0,0.05250935]
[1723815528323,3.52,142.01,142.0,0.05250935]
[1723815529024,0.04464228,142.03,142.0,0.05250935]
[1723815529421,3.52,142.01,142.0,0.05250935]
[1723815530021,58.67464228,142.03,141.91,50.77]
[1723815530232,65.72664228,142.03,141.88,50.77]
[1723815530723,3.5219,141.94,141.88,50.77]
[1723815530929,65.72664228,142.03,141.91,50.77]
[1723815531221,50.77,142.0,141.88,54.2931]
[1723815531614,0.04856978,141.98,141.96,0.04794081]
[1723815531820,3.5222,141.93,141.88,54.2931]
[1723815532017,3.47450225,141.96,141.88,50.77]
[1723815532322,3.47450225,141.96,141.83,50.77]
[1723815532323,50.77,141.95,141.83,50.77]
[1723815532823,3.5231,141.89,141.84,3.5241]
[1723815533217,3.5231,141.89,141.88,0.04724283]
[1723815533728,7.91057305,141.9,141.87,0.04936411]
[1723815534121,0.05057305,141.9,141.87,0.04936411]
[1723815535221,3.5232,141.88,141.87,0.04936411]
[1723815536526,7.91057305,141.9,141.78,50.77]
[1723815536731,0.05057305,141.9,141.81,50.77]
[1723815536919,7.86,141.89,141.82,3.5245]
[1723815537121,57.822,141.95,141.81,50.77]
[1723815537445,14.912,141.94,141.83,3.5244]
[1723815537629,14.912,141.94,141.81,50.77]
[1723815537928,0.05302938,141.9,141.82,3.5245]
[1723815538124,0.05302938,141.9,141.81,50.77]
[1723815538550,14.912,141.94,141.81,54.2948]
[1723815538824,3.524,141.85,141.81,50.77]
[1723815539031,3.524,141.85,141.81,3.5248]
[1723815539329,0.04604591,141.87,141.78,50.77]
[1723815539631,0.04665226,141.84,141.78,50.77]
[1723815540021,0.04665226,141.84,141.81,50.77]
[1723815540331,0.04639305,141.84,141.83,50.77]
[1723815540625,7.052,141.95,141.83,50.77]
[1723815540830,0.04591317,141.85,141.8,7.86]
[1723815541129,57.822,142.0,141.84,50.77]
[1723815541130,7.86,142.0,141.84,50.77]
[1723815541324,7.86,142.0,141.91,50.77]
[1723815541540,0.05081725,141.93,141.91,50.77]
[1723815541730,7.86,142.0,141.91,50.77]
[1723815541922,0.05159136,141.97,141.91,50.77]
[1723815542325,0.05159136,141.97,141.85,0.1617]
[1723815542629,0.05159136,141.97,141.87,3.5233]
[1723815543033,3.5227,141.9,141.86,50.77]
[1723815543333,3.5227,141.9,141.84,50.77]
[1723815543724,3.46591778,141.94,141.84,50.77]
[1723815544034,2.6061,141.93,141.81,50.77]
[1723815544233,0.05211008,141.88,141.84,50.77]
[1723815544530,7.86,141.97,141.87,50.77]
[1723815544722,7.86,141.98,141.87,50.77]
[1723815544924,7.86,141.98,141.89,3.5228]
[1723815545135,7.86,141.98,141.89,50.77]
[1723815545531,7.86,141.98,141.92,50.77]
[1723815545725,7.86,141.98,141.89,50.77]
[1723815545928,7.86,141.98,141.87,54.25672412]
[1723815546128,0.04748546,141.95,141.92,0.05055147]
[1723815546526,3.9149,142.03,141.91,50.77]
[1723815546734,2.566,142.03,141.91,50.77]
[1723815546928,0.04619064,141.95,141.92,0.05211008]
[1723815547129,1.2572,142.03,141.94,50.77]
[1723815547335,3.52,142.01,141.94,50.77]
[1723815547831,3.52,142.01,141.97,3.5208]
[1723815548143,50.77,142.01,141.78,7.0513]
[1723815548331,1.2533,142.0,141.9,3.5225]
[1723815548533,12.68244091,142.0,141.86,54.25426885]
[1723815548732,12.63347463,142.0,141.86,50.77]
[1723815548937,50.77,141.98,141.85,7.86]
[1723815549143,12.63347463,142.0,141.81,50.77]
[1723815549144,3.5239,141.86,141.81,50.77]
[1723815549336,50.77,141.96,141.81,50.77]
[1723815549545,9.2347,141.95,141.86,50.77]
[1723815550039,9.2347,141.95,141.83,3.5243]
[1723815550237,50.77,141.93,141.8,7.86]
[1723815550431,3.5244,141.84,141.8,3.5251]
[1723815550734,50.82190565,141.9,141.8,3.5251]
[1723815550932,50.77,141.88,141.76,7.86]
[1723815551137,3.49201323,141.87,141.75,50.77]
[1723815551344,3.5237,141.86,141.85,0.051042]
[1723815551636,0.04558771,141.82,141.8,50.77]
[1723815552141,12.71437933,141.92,141.83,3.5244]
[1723815552441,12.71437933,141.92,141.8,0.0493507]
[1723815552442,0.04665915,141.82,141.8,0.0493507]
[1723815552637,9.2333,141.92,141.81,50.77]
[1723815552836,12.8321072,141.92,141.81,50.77]
[1723815553064,12.8321072,141.92,141.81,3.5247]
[1723815553337,50.77,141.9,141.77,50.77]
[1723815553937,0.05235836,141.85,141.82,0.05028098]
[1723815554138,3.5244,141.83,141.82,0.05028098]
[1723815554339,58.80235836,141.85,141.7,58.75]
[1723815554547,2.6725,141.84,141.7,58.75]
[1723815554748,7.43242975,141.84,141.7,58.75]
[1723815555039,50.77,141.82,141.7,50.77]
[1723815555338,3.5266,141.75,141.7,50.77]
[1723815555538,0.05035689,141.77,141.75,0.04602253]
[1723815555737,3.49627059,141.82,141.72,3.527]
[1723815555946,3.9584,141.84,141.72,3.527]
[1723815556137,0.04482441,141.77,141.75,0.04800942]
[1723815556337,3.5262,141.76,141.75,0.04800942]
[1723815556534,0.04482441,141.77,141.75,0.04800942]
[1723815556743,3.9584,141.84,141.72,50.77]
[1723815557038,0.05182434,141.77,141.75,0.04800942]
[1723815557737,3.9584,141.84,141.75,50.77]
[1723815557939,1.3657,141.91,141.77,50.77]
[1723815558140,2.7308,141.91,141.8,50.77]
[1723815558338,6.1734825,141.91,141.8,50.77]
[1723815558534,3.5239,141.86,141.8,50.77]
[1723815558736,0.05014783,141.84,141.8,50.77]
[1723815558938,0.05014783,141.84,141.82,50.77]
[1723815559343,2.7308,141.91,141.82,50.81472539]
[1723815559735,0.05055322,141.84,141.83,3.5244]
[1723815560237,2.7308,141.91,141.82,0.04570661]
[1723815560640,0.05318657,141.85,141.79,50.77]
[1723815560858,3.524,141.85,141.79,50.77]
[1723815561142,0.04822357,141.83,141.79,50.77]
[1723815561350,0.04822357,141.83,141.81,0.04800942]
[1723815561646,0.04822357,141.83,141.82,3.5247]
[1723815562848,0.04822357,141.83,141.81,0.04800942]
[1723815563342,3.5247,141.82,141.81,0.04800942]
[1723815563536,0.04822357,141.83,141.81,0.04800942]
[1723815563740,3.5247,141.82,141.81,0.04800942]
[1723815564748,0.04822357,141.83,141.81,0.04800942]
[1723815565139,0.04822357,141.83,141.82,3.5247]
[1723815565838,0.04822357,141.83,141.81,0.04800942]
[1723815567048,3.5247,141.82,141.81,0.04800942]
[1723815567842,0.04822357,141.83,141.81,0.04800942]
[1723815568442,0.04822357,141.83,141.82,3.5247]
[1723815568637,0.04822357,141.83,141.81,0.04800942]
[1723815569551,0.04822357,141.83,141.82,3.5247]
[1723815570547,3.5247,141.82,141.81,0.04800942]
[1723815572045,4.7918,141.82,141.81,0.04800942]
[1723815572843,1.2671,141.82,141.7,50.77]
[1723815573049,52.0371,141.82,141.7,50.77]
[1723815573241,8.0,141.81,141.7,50.77]
[1723815573945,3.526,141.77,141.73,3.5268]
[1723815574341,3.526,141.77,141.7,50.77]
[1723815574740,3.58009849,141.77,141.7,50.77]
[1723815575143,0.05409849,141.77,141.7,50.77]
[1723815575339,0.05409849,141.77,141.76,3.5262]
[1723815576842,1.2834,141.86,141.75,50.77]
[1723815577448,1.2834,141.86,141.78,3.5255]
[1723815577645,50.77,141.79,141.61,7.0595]
[1723815577847,10.5392,141.78,141.64,50.77]
[1723815578149,0.04744778,141.71,141.69,0.04665491]
[1723815578646,0.04744778,141.71,141.67,54.29735777]
[1723815578647,3.5267,141.74,141.71,3.5274]
[1723815578949,0.04625916,141.71,141.69,0.04928329]
[1723815579141,50.77,141.75,141.61,50.77]
[1723815579340,0.04674876,141.71,141.61,50.77]
[1723815579748,0.04674876,141.71,141.69,0.04722492]
[1723815579947,15.29213603,141.78,141.69,0.04722492]
[1723815579948,62.6169,141.78,141.69,0.04722492]
[1723815580345,62.6169,141.78,141.56,7.0621]
[1723815580346,50.77,141.71,141.49,31.6198497]
[1723815580545,50.77,141.71,141.55,50.77]
[1723815580846,50.77,141.71,141.55,54.21011895]
[1723815580847,3.5288,141.66,141.55,54.21011895]
[1723815581045,0.04804759,141.71,141.58,50.77]
[1723815581241,0.04804759,141.71,141.54,58.77]
[1723815581447,0.04804759,141.71,141.6,50.77]
[1723815581643,50.77,141.74,141.61,9.616]
[1723815581847,50.77,141.69,141.56,1.0]
[1723815582051,50.77,141.66,141.52,50.77]
[1723815582253,50.77,141.66,141.61,1.0]
[1723815582454,101.54,141.63,141.51,1.276]
[1723815582754,50.77,141.58,141.47,8.34]
[1723815582952,8.34,141.65,141.47,8.34]
[1723815582953,1.347,141.57,141.47,8.34]
[1723815583153,50.77,141.55,141.47,8.34]
[1723815583352,50.77,141.55,141.44,3.10808246]
[1723815583548,50.77,141.52,141.44,3.10808246]
[1723815583746,50.81937931,141.52,141.44,3.10808246]
[1723815584252,50.77,141.5,141.44,3.10808246]
[1723815584554,3.5342,141.44,141.43,8.29232993]
[1723815585248,3.5347,141.42,141.39,37.29699023]
[1723815585850,1.3536,141.46,141.39,37.29699023]
[1723815586454,3.535,141.41,141.39,37.29699023]
[1723815586849,3.5357,141.38,141.37,55.88092329]
[1723815587346,50.77,141.44,141.37,55.88092329]
[1723815587649,50.77,141.47,141.37,55.88092329]
[1723815587853,50.77,141.5,141.34,128.47206299]
[1723815588059,0.04533034,141.42,141.35,1.38]
[1723815588250,0.04533034,141.42,141.36,8.36]
[1723815588448,0.04533034,141.42,141.3,3.56207629]
[1723815588449,3.5365,141.35,141.02,10.634]
[1723815588650,50.77,141.37,141.24,1.2606]
[1723815588853,50.77,141.37,141.25,10.16]
[1723815589051,50.77,141.39,141.25,92.74586087]
[1723815589456,50.77,141.37,141.26,1.3229]
[1723815589756,3.5366,141.35,141.26,1.3229]
[1723815590356,50.77,141.37,141.26,1.3229]
[1723815590657,50.77,141.37,141.29,3.5377]
[1723815590858,0.05121112,141.33,141.26,1.3229]
[1723815591049,50.77,141.4,141.26,1.3229]
[1723815591246,50.77,141.4,141.32,3.537]
[1723815591450,50.77,141.4,141.33,8.78]
[1723815591850,50.77,141.4,141.33,12.3168]
[1723815592248,50.77,141.4,141.33,8.78]
[1723815592454,0.05188253,141.38,141.35,0.04762514]
[1723815593161,0.05188253,141.38,141.33,8.78]
[1723815593162,50.77,141.37,141.33,8.78]
[1723815593368,50.77,141.37,140.32,21.33]
[1723815593369,50.77,141.3,141.19,8.78]
[1723815593661,50.77,141.3,141.2,8.78]
[1723815593861,50.77,141.3,141.23,3.5394]
[1723815593862,3.5384,141.28,141.23,3.5394]
[1723815594057,50.77,141.3,141.2,8.78]
[1723815594252,3.5387,141.26,141.21,3.5399]
[1723815594961,3.58985736,141.26,141.21,3.5399]
[1723815595161,3.539,141.25,141.2,12.3201]
[1723815595362,3.539,141.25,141.2,3.5401]
[1723815595565,0.05115736,141.26,141.19,8.78]
[1723815596062,3.5392,141.24,141.2,3.5401]
[1723815596466,3.5392,141.24,141.18,2.61]
[1723815596467,50.77,141.24,141.18,1.2682]
[1723815596766,50.77,141.21,141.08,1.3094]
[1723815596960,3.5407,141.18,141.12,3.5422]
[1723815597263,50.77,141.21,141.11,8.78]
[1723815597459,50.77,141.18,141.11,12.3222]
[1723815597861,50.77,141.18,141.11,8.78]
[1723815598163,3.5414,141.16,141.1,3.5427]
[1723815598364,50.77,141.18,141.08,1.3094]
[1723815598664,50.77,141.18,141.09,3.5428]
[1723815598868,3.45242272,141.28,141.08,52.0794]
[1723815598869,0.04713181,141.16,141.08,52.0794]
[1723815599564,0.04713181,141.16,141.13,3.5417]
[1723815599755,0.04713181,141.16,141.13,8.8]
[1723815599956,50.77,141.23,141.13,8.8]
[1723815600159,50.77,141.23,141.13,12.3417]
[1723815600565,50.77,141.21,141.13,12.3417]
[1723815600766,0.04532881,141.16,141.13,12.3417]
[1723815600966,0.04532881,141.16,141.14,3.5416]
[1723815601169,0.04532881,141.16,141.08,52.0794]
[1723815601357,0.04532881,141.16,141.09,8.8]
[1723815601762,3.5418,141.14,141.09,8.8]
[1723815601962,0.04532881,141.16,141.09,12.3428]
[1723815602164,57.822,141.24,141.08,1.3094]
[1723815602165,50.77,141.15,141.08,1.3094]
[1723815602358,3.5427,141.1,141.06,2.5723]
[1723815603267,50.77,141.13,141.06,2.5723]
[1723815603467,50.77,141.13,141.06,4.8525]
[1723815603673,0.05135968,141.09,141.06,1.3089]
[1723815604372,3.5415,141.15,141.06,1.3089]
[1723815604671,50.77,141.18,141.06,52.0789]
[1723815604864,50.77,141.18,141.01,10.1703]
[1723815604865,50.77,141.13,141.01,10.1703]
[1723815605065,50.77,141.13,141.02,1.2748]
[1723815605267,50.77,141.13,141.06,0.0466225]
[1723815605969,3.5434,141.07,141.06,0.0466225]
[1723815606570,50.77,141.08,140.92,50.77]
[1723815606870,50.77,141.04,140.98,3.5455]
[1723815607073,50.77,141.07,140.94,2.7123]
[1723815607276,50.77,141.07,140.95,8.8]
[1723815607681,3.5441,141.05,140.95,8.8]
[1723815608276,50.77,141.12,140.98,50.77]
[1723815608578,50.77,141.18,141.03,50.77]
[1723815608772,50.77,141.18,141.04,11.4142]
[1723815608970,50.77,141.2,141.15,3.5412]
[1723815609273,7.0759,141.29,141.06,50.77]
[1723815609274,50.77,141.21,141.06,50.77]
[1723815609475,50.77,141.18,141.07,8.8]
[1723815609782,3.5409,141.17,141.16,0.05089673]
[1723815610281,3.5418,141.14,141.09,3.5428]
[1723815610470,50.77,141.18,141.1,8.8]
[1723815610668,50.77,141.21,141.1,8.8]
[1723815610872,50.77,141.24,141.1,8.8]
[1723815611177,50.77,141.24,141.11,50.77]
[1723815611374,0.04714534,141.18,141.15,0.05029805]
[1723815611573,50.77,141.26,141.15,0.05029805]
[1723815611777,50.77,141.28,141.15,0.05029805]
[1723815611973,50.77,141.33,141.19,50.77]
[1723815612376,3.5375,141.31,141.2,8.8]
[1723815612575,50.77,141.31,141.19,50.77]
[1723815612785,50.77,141.31,141.2,8.8]
[1723815612982,50.77,141.34,141.2,8.8]
[1723815613280,0.0451764,141.27,141.24,0.05325646]
[1723815614206,50.77,141.31,141.24,3.5391]
[1723815614578,50.77,141.31,141.22,8.8]
[1723815614780,50.77,141.36,141.22,8.8]
[1723815615287,50.77,141.39,141.26,3.5387]
[1723815615288,0.05372915,141.27,141.26,3.5387]
[1723815615781,50.77,141.39,141.27,50.77]
[1723815615981,50.77,141.39,141.28,1.3377]
[1723815616185,3.5359,141.37,141.29,8.8]
[1723815616383,50.77,141.39,141.33,3.5369]
[1723815616580,50.77,141.42,141.29,8.8]
[1723815616788,50.77,141.44,141.32,50.77]
[1723815616983,50.77,141.44,141.33,1.3702]
[1723815617291,0.04697429,141.37,141.36,3.5361]
[1723815617493,50.77,141.44,141.35,0.04933496]
[1723815617684,50.77,141.49,141.36,8.8]
[1723815617983,0.0472169,141.38,141.36,8.8]
[1723815618189,50.77,141.49,141.36,8.8]
[1723815618381,50.77,141.49,141.44,3.5341]
[1723815618701,50.77,141.49,141.37,50.77]
[1723815618990,50.77,141.49,141.41,0.05248126]
[1723815619186,50.77,141.47,141.41,0.05248126]
[1723815619878,50.77,141.49,141.41,0.05248126]
[1723815620083,50.77,141.52,141.41,0.05248126]
[1723815620283,0.04890673,141.46,141.41,0.05248126]
[1723815620479,0.04890673,141.46,141.45,3.5338]
[1723815620991,0.04890673,141.46,141.45,9.0]
[1723815621185,0.04890673,141.46,141.44,0.05193387]
[1723815622687,50.77,141.55,141.44,0.05193387]
[1723815622887,3.5323,141.52,141.47,3.5332]
[1723815623296,50.77,141.55,141.45,9.0]
[1723815623882,0.05187092,141.51,141.49,0.04605499]
[1723815624287,0.05187092,141.51,141.5,3.5327]
[1723815624483,50.77,141.58,141.45,59.77]
[1723815624887,0.04823609,141.52,141.49,0.05158622]
[1723815625490,50.77,141.58,141.45,59.77]
[1723815626095,3.5314,141.55,141.5,3.5325]
[1723815626297,0.05193102,141.52,141.49,0.04704723]
[1723815626495,0.05193102,141.52,141.5,3.5325]
[1723815626891,0.05193102,141.52,141.49,0.04704723]
[1723815627692,0.05193102,141.52,141.4,29.5567]
[1723815627898,0.05193102,141.52,141.18,17.7033]
[1723815627899,3.5343,141.44,141.36,1.333]
[1723815628095,50.77,141.48,141.4,3.535]
[1723815628289,50.77,141.48,141.36,10.333]
[1723815628689,50.77,141.48,141.4,3.535]
[1723815628896,50.77,141.48,141.36,10.333]
[1723815629089,50.77,141.48,141.4,3.535]
[1723815629288,0.0489454,141.44,141.42,0.04685257]
[1723815630199,3.5832454,141.44,141.42,0.04685257]
[1723815630414,0.0489454,141.44,141.42,0.04685257]
[1723815630705,3.5344,141.43,141.42,0.04685257]
[1723815631698,3.5832454,141.44,141.42,0.04685257]
[1723815631901,0.0489454,141.44,141.42,0.04685257]
[1723815634605,3.5344,141.43,141.42,0.04685257]
[1723815635297,3.5344,141.43,141.37,3.5358]
[1723815635298,59.77,141.43,141.14,226.0]
[1723815635502,50.77,141.35,141.27,3.5383]
[1723815635704,9.0,141.34,141.24,1.2935]
[1723815636104,50.77,141.35,141.26,3.5385]
[1723815636293,50.77,141.35,141.24,1.2935]
[1723815636294,9.0,141.33,141.24,1.2935]
[1723815636609,3.5377,141.3,141.25,3.5389]
[1723815636808,3.5377,141.3,141.29,0.04914745]
[1723815637511,9.0,141.31,141.21,1.3359]
[1723815637806,50.77,141.29,141.17,1.3436]
[1723815638298,50.77,141.27,141.17,1.3436]
[1723815638495,50.77,141.27,141.18,3.5405]
[1723815638705,3.5393,141.24,141.17,1.3436]
[1723815638907,0.04844279,141.23,141.21,0.04466367]
[1723815639402,3.49527151,141.35,141.17,1.3436]
[1723815639403,50.77,141.32,141.19,50.77]
[1723815639611,3.5378,141.3,141.24,3.539]
[1723815640002,50.77,141.32,141.24,3.539]
[1723815640301,0.0507296,141.28,141.24,3.539]
[1723815640698,0.0507296,141.28,141.23,3.5393]
[1723815640906,3.5891296,141.28,141.27,0.05198926]
[1723815641111,0.0507296,141.28,141.27,0.05198926]
[1723815641293,0.0507296,141.28,141.2,1.2949]
[1723815641705,0.0507296,141.28,141.21,3.5399]
[1723815641905,0.0507296,141.28,141.2,1.2949]
[1723815642107,0.0507296,141.28,141.2,52.0649]
[1723815642308,0.0507296,141.28,141.2,1.2949]
[1723815642507,3.5388,141.26,141.2,1.2949]
[1723815642710,0.0507296,141.28,141.23,0.05226914]
[1723815642907,50.77,141.31,141.23,0.05226914]
[1723815643107,3.5386,141.27,141.23,0.05226914]
[1723815643305,0.04623598,141.27,141.23,0.05226914]
[1723815643514,3.5387,141.26,141.23,0.05226914]
[1723815643810,0.04623598,141.27,141.23,0.05226914]
[1723815644306,3.58483598,141.27,141.23,3.59166914]
[1723815645300,0.04623598,141.27,141.24,3.5391]
[1723815645498,0.04623598,141.27,141.23,0.05226914]
[1723815645898,0.04623598,141.27,141.23,3.59156914]
[1723815646409,0.04623598,141.27,141.23,0.05226914]
[1723815647005,3.5392,141.24,141.23,0.05226914]
[1723815647605,3.5392,141.24,141.23,0.00226914]
[1723815648709,0.04623598,141.27,141.23,0.00226914]
[1723815649103,0.04623598,141.27,141.23,3.54156914]
[1723815650022,0.04623598,141.27,141.23,0.00226914]
[1723815650408,0.04623598,141.27,141.23,3.55033366]
[1723815651012,0.04623598,141.27,141.23,0.00226914]
[1723815651819,0.04623598,141.27,141.23,3.5312257]
[1723815652010,0.04623598,141.27,141.26,3.5387]
[1723815652211,0.04623598,141.27,141.23,0.00226914]
[1723815653013,0.04623598,141.27,141.24,3.5389]
[1723815653217,0.04623598,141.27,141.23,0.00226914]
[1723815653612,0.04623598,141.27,141.24,3.539]
[1723815654005,50.81623598,141.27,141.23,0.00226914]
[1723815654206,3.5392,141.24,141.23,0.00226914]
[1723815656118,54.3092,141.24,141.23,0.00226914]
[1723815656512,3.5392,141.24,141.23,0.00226914]
[1723815656916,0.04623598,141.27,141.23,0.00226914]
[1723815657814,0.04623598,141.27,141.23,3.54471706]
[1723815658120,0.04623598,141.27,141.26,3.5387]
[1723815658510,50.77,141.4,141.26,50.77]
[1723815658907,3.5363,141.36,141.32,3.537]
[1723815659110,50.77,141.4,141.26,50.77]
[1723815659317,50.77,141.4,141.24,6.17202156]
[1723815659514,3.5366,141.35,141.26,50.77]
[1723815659818,0.05450087,141.33,141.31,0.05298882]
[1723815660016,50.77,141.4,141.26,50.77]
[1723815660217,0.050773,141.33,141.31,0.04735028]
[1723815660517,50.77,141.35,141.26,3.5386]
[1723815660713,0.04622588,141.33,141.31,0.04670922]
[1723815661019,0.04622588,141.33,141.24,1.3172]
[1723815661223,50.77,141.35,141.24,1.3172]
[1723815662018,3.5375,141.31,141.24,1.3172]
[1723815662217,0.04970631,141.31,141.29,3.5379]
[1723815662424,0.04970631,141.31,141.24,1.3172]
[1723815663217,3.5383,141.28,141.24,1.3172]
[1723815663515,3.5381,141.29,141.24,1.3172]
[1723815663720,0.04553457,141.27,141.24,1.3172]
[1723815664223,0.04553457,141.27,141.19,1.2721]
[1723815664417,0.04553457,141.27,141.19,2.5516]
[1723815664620,0.04553457,141.27,141.2,50.77]
[1723815665021,0.04553457,141.27,141.26,3.5387]
[1723815666022,50.77,141.37,141.29,3.5378]
[1723815666420,50.77,141.42,141.29,50.77]
[1723815666639,230.0,141.45,141.31,50.77]
[1723815666640,50.77,141.45,141.31,50.77]
[1723815667126,0.0457585,141.39,141.37,0.04778522]
[1723815667318,50.77,141.45,141.37,0.04778522]
[1723815667523,79.07,141.48,141.38,3.5355]
[1723815667828,0.05172232,141.39,141.37,0.04778522]
[1723815668223,0.05172232,141.39,141.38,3.5357]
[1723815668419,62.9834712,141.5,141.37,50.77]
[1723815668722,3.61979488,141.49,141.37,50.77]
[1723815668920,50.77,141.47,141.35,8.68]
[1723815669121,50.77,141.45,141.32,1.347]
[1723815669321,50.77,141.43,141.32,1.347]
[1723815669529,50.77,141.43,141.28,50.77]
[1723815669718,50.77,141.37,141.27,1.347]
[1723815669924,50.77,141.37,141.26,8.68]
[1723815669925,54.38696719,141.37,141.26,8.68]
[1723815670119,50.77,141.34,141.23,1.3764]
[1723815670726,8.68,141.36,141.23,1.3764]
[1723815671026,50.77,141.39,141.34,0.04491408]
[1723815671228,3.5366,141.35,141.34,0.04491408]
[1723815671629,3.5368,141.34,141.3,3.5376]
[1723815671830,50.77,141.39,141.26,4.88475835]
[1723815672128,0.05135499,141.38,141.27,59.45]
[1723815672324,0.05135499,141.38,141.3,50.77]
[1723815672624,0.05135499,141.38,141.33,0.04562896]
[1723815673134,50.77,141.42,141.33,0.04562896]
[1723815673427,50.77,141.39,141.33,0.04562896]
[1723815673928,50.77,141.39,141.27,1.3633]
[1723815673929,50.81552828,141.37,141.28,3.538]
[1723815674323,3.5361,141.36,141.35,0.05132553]
[1723815674531,50.81552828,141.37,141.26,1.2738]
[1723815674532,50.77,141.37,141.26,1.2738]
[1723815674750,50.77,141.33,141.26,1.2738]
[1723815674934,50.77,141.33,141.26,4.8124]
[1723815675232,50.77,141.33,141.26,1.2738]
[1723815675435,50.77,141.36,141.26,4.8124]
[1723815675627,50.77,141.36,141.26,1.2738]
[1723815675932,0.04551883,141.31,141.28,0.04493216]
[1723815676126,3.5379,141.29,141.28,0.04493216]
[1723815680436,0.04551883,141.31,141.28,0.04493216]
[1723815681330,3.5379,141.29,141.28,0.04493216]
[1723815682335,0.04551883,141.31,141.28,0.04493216]
[1723815682336,0.04551883,141.31,141.28,3.58293216]
[1723815682934,3.58311883,141.31,141.28,3.58293216]
[1723815683233,0.04551883,141.31,141.28,3.58293216]
[1723815683636,3.58311883,141.31,141.28,3.58293216]
[1723815684240,3.5377,141.3,141.28,0.04493216]
[1723815684734,0.04551883,141.31,141.28,0.04493216]
[1723815685542,3.58301883,141.31,141.28,3.58293216]
[1723815685930,0.04551883,141.31,141.28,0.04493216]
[1723815686641,3.5379,141.29,141.28,0.04493216]
[1723815687947,3.5377,141.3,141.28,0.04493216]
[1723815688440,3.5379,141.29,141.28,0.04493216]
[1723815689247,3.5378,141.3,141.28,0.04493216]
[1723815689443,0.04551883,141.31,141.28,0.04493216]
[1723815689948,50.77,141.38,141.28,0.04493216]
[1723815690138,50.77,141.38,141.26,50.77]
[1723815690540,50.77,141.41,141.26,50.77]
[1723815691041,50.77,141.38,141.26,50.77]
[1723815691242,0.05383995,141.35,141.32,0.04727531]
[1723815691441,3.5367,141.34,141.32,0.04727531]
[1723815691641,0.05383995,141.35,141.32,0.04727531]
[1723815691841,50.77,141.33,141.24,8.28]
[1723815692038,50.77,141.33,141.25,3.5387]
[1723815692239,50.77,141.33,141.22,1.3163]
[1723815692440,50.77,141.31,141.22,1.3163]
[1723815692653,3.5383,141.28,141.22,1.3163]
[1723815692850,50.77,141.31,141.22,1.3163]
[1723815693152,0.04529754,141.26,141.25,3.5387]